{"text_format":"1","workbook":"xlsx","n_sheets":3,"sheets":["selecteer de teksten","geselecteerde teksten","omzettingstabel"],"not_rendered":{"charts":0,"images":2,"macros":1,"external_links":0,"defined_names":6,"comments":0,"pivot_tables":0},"unopened":[],"bounds":{"document_bytes":16777216,"sheet_cells":100000,"rows_first":2000,"rows_last":500,"rows_between":2000,"halvings":0,"cell_chars":16384,"cell_head_chars":4096},"cells_cut":0,"cells_raw":0,"read":"whole","date_system":"1900"}

{"sheet":"selecteer de teksten","index":0,"n_rows":150,"n_cols":21,"rows_kept":150,"cut":false,"hidden":false,"merged":[[2,14,2,15],[8,14,8,15]]}
[null,"Engels havo"]
[]
[null,null,"jaar","tekst","omschrijving","indicatie moeilijkheidsgraad","P","L","N",null,"ü",null,null,null,"grenswaarden",null,null,"P","L","N","bijdrage"]
[null,null,2011,1,"Sir: I’m astonished…",{"$f":"IF(G4>P$7,\"makkelijke tekst\",IF(G4<P$6,\"moeilijke tekst\",\"tekst van gemiddelde moeilijkheid\"))","v":"makkelijke tekst"},85,1,-0.65000000000000036,null,null,null,null,null,"gemiddelde",{"$f":"AVERAGE(G4:G151)","v":68.024958427815605},null,{"$f":"IF($K4=\"ü\",$G4,\"\")","v":""},{"$f":"IF($K4=\"ü\",$H4,\"\")","v":""},{"$f":"IF($K4=\"ü\",$I4,\"\")","v":""},{"$f":"IF($K4=\"ü\",$G4*$H4,\"\")","v":""}]
[null,null,2011,2,"A rider off the rails",{"$f":"IF(G5>P$7,\"makkelijke tekst\",IF(G5<P$6,\"moeilijke tekst\",\"tekst van gemiddelde moeilijkheid\"))","v":"tekst van gemiddelde moeilijkheid"},78,6,-1.9999999999999574E-2,null,null,null,null,null,"standaarddeviatie",{"$f":"STDEVA(G4:G151)","v":12.921376197958947},null,{"$f":"IF($K5=\"ü\",$G5,\"\")","v":""},{"$f":"IF($K5=\"ü\",$H5,\"\")","v":""},{"$f":"IF($K5=\"ü\",$I5,\"\")","v":""},{"$f":"IF($K5=\"ü\",$G5*$H5,\"\")","v":""}]
[null,null,2011,3,"Win your lover back","makkelijke tekst",81,8,-0.29000000000000004,null,null,null,null,null,"M-S",{"$f":"P4-P5","v":55.103582229856656},null,"","","",""]
[null,null,2011,4,"Serious swimmers","tekst van gemiddelde moeilijkheid",80,4,-0.20000000000000018,null,null,null,null,null,"M+S",{"$f":"P4+P5","v":80.946334625774554},null,"","","",""]
[null,null,2011,5,"National buffoon","tekst van gemiddelde moeilijkheid",60,7,1.5999999999999996,null,null,null,null,null,null,null,null,"","","",""]
[null,null,2011,6,"Dollars for scholars","tekst van gemiddelde moeilijkheid",75,9,0.25,null,null,null,null,null,"gewogen P en N",null,null,"","","",""]
[null,null,2011,7,"Texting shorthand annoys purists, but it has its charm","tekst van gemiddelde moeilijkheid",66,5,1.0599999999999996,null,null,null,null,null,"totale bijdrage",{"$f":"SUM(U4:U151)","v":0},null,"","","",""]
[null,null,2011,8,"Music, corsages and a killer","moeilijke tekst",46,1,2.8600000000000003,null,null,null,null,null,"gem sc",{"$f":"P10/100","v":0},null,"","","",""]
[null,null,2011,9,"…faked TV shows?","tekst van gemiddelde moeilijkheid",56,6,1.96,null,null,null,null,null,"totale lengte",{"$f":"SUM(S4:S151)","v":0},null,"","","",""]
[null,null,2011,10,"Why all you need is cash for a fab advert","moeilijke tekst",54,1,2.1399999999999997,null,null,null,null,null,"9*P",{"$f":"IF(P12=0,0,9*P11/P12)","v":0},null,"","","",""]
[null,null,2011,11,"Scary movie making viewers sick","moeilijke tekst",51,1,2.41,null,null,null,null,null,"n-term",{"$f":"IF(P12=0,1,7-P13)","v":1},null,"","","",""]
[null,null,2012,1,"Jet-setters get the needle",{"$f":"IF(G15>P$7,\"makkelijke tekst\",IF(G15<P$6,\"moeilijke tekst\",\"tekst van gemiddelde moeilijkheid\"))","v":"moeilijke tekst"},48.888888888888886,1,2.5999999999999996,null,null,null,null,null,"afgeronde N",{"$f":"ROUND(P14,1)","v":1},null,"","","",""]
[null,null,2012,2,"Say no to Speedos",{"$f":"IF(G16>P$7,\"makkelijke tekst\",IF(G16<P$6,\"moeilijke tekst\",\"tekst van gemiddelde moeilijkheid\"))","v":"tekst van gemiddelde moeilijkheid"},77.888888888888886,1,-9.9999999999997868E-3,null,null,null,null,null,null,null,null,"","","",""]
[null,null,2012,3,"The following text…","makkelijke tekst",87.888888888888886,7,-0.91000000000000014,null,null,null,null,null,null,null,null,"","","",""]
[null,null,2012,4,"What’s cooking?","tekst van gemiddelde moeilijkheid",66.888888888888886,7,0.98000000000000043,null,null,null,null,null,null,null,null,"","","",""]
[null,null,2012,5,"The waiting game","tekst van gemiddelde moeilijkheid",73.888888888888886,6,0.34999999999999964,null,null,null,null,null,null,null,null,"","","",""]
[null,null,2012,6,"Alternative medicine","makkelijke tekst",96.888888888888886,2,-1.7200000000000006,null,null,null,null,null,null,null,null,"","","",""]
[null,null,2012,7,"Lads’ mags cause obsession","tekst van gemiddelde moeilijkheid",79.888888888888886,7,-0.19000000000000039,null,null,null,null,null,null,null,null,"","","",""]
[null,null,2012,8,"Take my kidney, please","tekst van gemiddelde moeilijkheid",66.888888888888886,8,0.98000000000000043,null,null,null,null,null,null,null,null,"","","",""]
[null,null,2012,9,"Ms. Fix-It","tekst van gemiddelde moeilijkheid",72.888888888888886,8,0.44000000000000039,null,null,null,null,null,null,null,null,"","","",""]
[null,null,2012,10,"Joint gladness","moeilijke tekst",48.888888888888886,2,2.5999999999999996,null,null,null,null,null,null,null,null,"","","",""]
[null,null,2012,11,"TV: Pick of the day","tekst van gemiddelde moeilijkheid",74.888888888888886,4,0.25999999999999979,null,null,null,null,null,null,null,null,"","","",""]
[null,null,2012,12,"Multitasking: Is there a gift?","moeilijke tekst",50.888888888888886,1,2.42,null,null,null,null,null,null,null,null,"","","",""]
[null,null,2012,13,"How much carbon dioxide does your computer emit?","tekst van gemiddelde moeilijkheid",55.888888888888886,1,1.9699999999999998,null,null,null,null,null,null,null,null,"","","",""]
[null,null,2013,1,"To swear or not to swear","tekst van gemiddelde moeilijkheid",74.423333333333332,4,0.30190000000000072,null,null,null,null,null,null,null,null,"","","",""]
[null,null,2013,2,"Marathon hypocrisy","tekst van gemiddelde moeilijkheid",72.883333333333326,3,0.440500000000001,null,null,null,null,null,null,null,null,"","","",""]
[null,null,2013,3,"Can we trust the forecasts?","makkelijke tekst",81.103333333333325,5,-0.29929999999999968,null,null,null,null,null,null,null,null,"","","",""]
[null,null,2013,4,"Take a bow-wow","makkelijke tekst",82.603333333333325,8,-0.43429999999999946,null,null,null,null,null,null,null,null,"","","",""]
[null,null,2013,5,"Airbrushing ‘bad ads’ from public life","tekst van gemiddelde moeilijkheid",66.373333333333335,9,1.0263999999999998,null,null,null,null,null,null,null,null,"","","",""]
[null,null,2013,6,"De volgende tekst…","tekst van gemiddelde moeilijkheid",65.693333333333328,6,1.0876000000000001,null,null,null,null,null,null,null,null,"","","",""]
[null,null,2013,7,"Squeezing the joy out of ketchup","tekst van gemiddelde moeilijkheid",77.603333333333325,7,1.5700000000000713E-2,null,null,null,null,null,null,null,null,"","","",""]
[null,null,2013,8,"Letters responding to","moeilijke tekst",48.333333333333329,2,2.6500000000000004,null,null,null,null,null,null,null,null,"","","",""]
[null,null,2013,9,"A real pest","makkelijke tekst",88.723333333333329,2,-0.98510000000000009,null,null,null,null,null,null,null,null,"","","",""]
[null,null,2013,10,"Film","makkelijke tekst",90.333333333333329,1,-1.1300000000000008,null,null,null,null,null,null,null,null,"","","",""]
[null,null,2014,1,"Monroe sculpture skirts controversy","makkelijke tekst",84.555555555555557,1,-0.61000000000000032,null,null,null,null,null,null,null,null,"","","",""]
[null,null,2014,2,"Note to diners: peel bananas before eating","tekst van gemiddelde moeilijkheid",76.555555555555557,2,0.11000000000000032,null,null,null,null,null,null,null,null,"","","",""]
[null,null,2014,3,"Penguin project","tekst van gemiddelde moeilijkheid",78.315555555555562,4,-4.8399999999999999E-2,null,null,null,null,null,null,null,null,"","","",""]
[null,null,2014,4,"Free-market solutions for overweight Americans","tekst van gemiddelde moeilijkheid",77.695555555555558,6,7.4000000000005173E-3,null,null,null,null,null,null,null,null,"","","",""]
[null,null,2014,5,"Risk and opportunity for women in science","makkelijke tekst",82.595555555555563,6,-0.4336000000000011,null,null,null,null,null,null,null,null,"","","",""]
[null,null,2014,6,"In Defence of Dogs","makkelijke tekst",82.935555555555553,8,-0.46419999999999995,null,null,null,null,null,null,null,null,"","","",""]
[null,null,2014,7,"Alarm raised on teenage hackers","makkelijke tekst",84.275555555555556,5,-0.58480000000000043,null,null,null,null,null,null,null,null,"","","",""]
[null,null,2014,8,"Swim, cycle, run? Try fridge, beer, couch","tekst van gemiddelde moeilijkheid",67.065555555555562,6,0.96409999999999929,null,null,null,null,null,null,null,null,"","","",""]
[null,null,2014,9,"Letters: TV cameras in court?","tekst van gemiddelde moeilijkheid",58.55555555555555,2,1.7300000000000004,null,null,null,null,null,null,null,null,"","","",""]
[null,null,2014,10,"Take a schoolholiday","tekst van gemiddelde moeilijkheid",75.555555555555557,2,0.20000000000000018,null,null,null,null,null,null,null,null,"","","",""]
[null,null,2014,11,"Nuclear risks","moeilijke tekst",46.55555555555555,1,2.8100000000000005,null,null,null,null,null,null,null,null,"","","",""]
[null,null,2014,12,"Too many hang-ups","tekst van gemiddelde moeilijkheid",79.305555555555557,4,-0.13750000000000018,null,null,null,null,null,null,null,null,"","","",""]
[null,null,2015,1,"Angling","makkelijke tekst",99.222222222222229,1,-1.9299999999999997,null,null,null,null,null,null,null,null,"","","",""]
[null,null,2015,2,"Tall order",{"$f":"IF(G51>P$7,\"makkelijke tekst\",IF(G51<P$6,\"moeilijke tekst\",\"tekst van gemiddelde moeilijkheid\"))","v":"makkelijke tekst"},86.552222222222227,2,-0.78969999999999985,null,null,null,null,null,null,null,null,"","","",""]
[null,null,2015,3,"Louis C.K. wasn't prepared for his Emmy nomination","makkelijke tekst",82.922222222222231,3,-0.46300000000000097,null,null,null,null,null,null,null,null,"","","",""]
[null,null,2015,4,"Ending eradication","tekst van gemiddelde moeilijkheid",64.542222222222222,4,1.1912000000000003,null,null,null,null,null,null,null,null,"","","",""]
[null,null,2015,5,"Taste stubbed out","tekst van gemiddelde moeilijkheid",60.222222222222221,1,1.58,null,null,null,null,null,null,null,null,"","","",""]
[null,null,2015,6,"Is meat the fix?","tekst van gemiddelde moeilijkheid",71.492222222222225,5,0.56569999999999965,null,null,null,null,null,null,null,null,"","","",""]
[null,null,2015,7,"A chimp's life revisited","tekst van gemiddelde moeilijkheid",60.792222222222222,8,1.5286999999999997,null,null,null,null,null,null,null,null,"","","",""]
[null,null,2015,8,"Would you let your teen become a reality show?","makkelijke tekst",84.89222222222223,6,-0.64030000000000076,null,null,null,null,null,null,null,null,"","","",""]
[null,null,2015,9,"Alone in the crowd","tekst van gemiddelde moeilijkheid",70.172222222222231,5,0.684499999999999,null,null,null,null,null,null,null,null,"","","",""]
[null,null,2015,10,"Het volgende fragment...","tekst van gemiddelde moeilijkheid",72.792222222222222,4,0.44869999999999965,null,null,null,null,null,null,null,null,"","","",""]
[null,null,2015,11,"Big city, small sodas","tekst van gemiddelde moeilijkheid",68.282222222222231,6,0.85459999999999958,null,null,null,null,null,null,null,null,"","","",""]
[null,null,2015,12,"Gender roles","tekst van gemiddelde moeilijkheid",64.222222222222229,1,1.2199999999999998,null,null,null,null,null,null,null,null,"","","",""]
[null,null,2015,13,"Honey money","tekst van gemiddelde moeilijkheid",76.222222222222229,1,0.13999999999999968,null,null,null,null,null,null,null,null,"","","",""]
[null,null,2016,1,"We need a new Bond","makkelijke tekst",90.422222222222231,1,-1.1379999999999999,null,null,null,null,null,null,null,null,"","","",""]
[null,null,2016,2,"Serie A’s spy scandal","tekst van gemiddelde moeilijkheid",65.942222222222227,2,1.0651999999999999,null,null,null,null,null,null,null,null,"","","",""]
[null,null,2016,3,"Name your son Cherokee and he’ll turn out a Kevin","tekst van gemiddelde moeilijkheid",59.522222222222219,3,1.6430000000000007,null,null,null,null,null,null,null,null,"","","",""]
[null,null,2016,4,"Fare well?","tekst van gemiddelde moeilijkheid",67.39222222222223,4,0.93469999999999942,null,null,null,null,null,null,null,null,"","","",""]
[null,null,2016,5,"Cash, please","tekst van gemiddelde moeilijkheid",65.552222222222227,6,1.1002999999999998,null,null,null,null,null,null,null,null,"","","",""]
[null,null,2016,6,"Spare our wily neighbour","tekst van gemiddelde moeilijkheid",66.782222222222231,9,0.98959999999999937,null,null,null,null,null,null,null,null,"","","",""]
[null,null,2016,7,"Really? Is that a fact? Hey, just checking","tekst van gemiddelde moeilijkheid",57.242222222222225,6,1.8481999999999994,null,null,null,null,null,null,null,null,{"$f":"IF($K69=\"ü\",$G69,\"\")","v":""},{"$f":"IF($K69=\"ü\",$H69,\"\")","v":""},{"$f":"IF($K69=\"ü\",$I69,\"\")","v":""},{"$f":"IF($K69=\"ü\",$G69*$H69,\"\")","v":""}]
[null,null,2016,8,"The capital’s hidden past and present","tekst van gemiddelde moeilijkheid",65.862222222222229,6,1.0723999999999991,null,null,null,null,null,null,null,null,"","","",""]
[null,null,2016,9,"Why wet skin wrinkles","tekst van gemiddelde moeilijkheid",56.232222222222219,2,1.9390999999999998,null,null,null,null,null,null,null,null,"","","",""]
[null,null,2016,10,"Mickey Mouse","tekst van gemiddelde moeilijkheid",66.062222222222232,1,1.0543999999999993,null,null,null,null,null,null,null,null,"","","",""]
[null,null,2016,11,"Letters","moeilijke tekst",40.30222222222222,2,3.3728000000000002,null,null,null,null,null,null,null,null,"","","",""]
[null,null,2016,12,"How to detect intestinal worms","makkelijke tekst",81.372222222222234,2,-0.32350000000000101,null,null,null,null,null,null,null,null,"","","",""]
[null,null,2016,13,"Cabinet kilter","makkelijke tekst",90.182222222222222,1,-1.1164000000000005,null,null,null,null,null,null,null,null,"","","",""]
[null,null,2016,14,"False start","moeilijke tekst",50.402222222222221,1,2.4638,null,null,null,null,null,null,null,null,"","","",""]
[null,null,2016,15,"Briefly","makkelijke tekst",92.232222222222234,2,-1.3009000000000022,null,null,null,null,null,null,null,null,"","","",""]
[null,null,2017,1,"When you’ve got to go","tekst van gemiddelde moeilijkheid",55.901111111111106,2,1.9689000000000005,null,null,null,null,null,null,null,null,"","","",""]
[null,null,2017,2,"Rebels without a cause","tekst van gemiddelde moeilijkheid",80.321111111111094,5,-0.22889999999999855,null,null,null,null,null,null,null,null,"","","",""]
[null,null,2017,3,"My little patch of prairie","tekst van gemiddelde moeilijkheid",73.151111111111106,6,0.41640000000000121,null,null,null,null,null,null,null,null,"","","",""]
[null,null,2017,4,"Textual healing","tekst van gemiddelde moeilijkheid",58.951111111111111,3,1.6944000000000008,null,null,null,null,null,null,null,null,"","","",""]
[null,null,2017,5,"Can changing what you eat save the planet?","tekst van gemiddelde moeilijkheid",55.461111111111109,5,2.0085000000000006,null,null,null,null,null,null,null,null,"","","",""]
[null,null,2017,6,"Why adults dismissed The Beatles in 1964","tekst van gemiddelde moeilijkheid",56.271111111111104,8,1.9356000000000009,null,null,null,null,null,null,null,null,"","","",""]
[null,null,2017,7,"Airlines see big potential in Wi-Fi","tekst van gemiddelde moeilijkheid",71.601111111111095,4,0.55590000000000117,null,null,null,null,null,null,null,null,"","","",""]
[null,null,2017,8,"Genetic engineering","moeilijke tekst",52.601111111111109,6,2.2659000000000002,null,null,null,null,null,null,null,null,"","","",""]
[null,null,2017,9,"Kent anti-bullying co-ordinator","moeilijke tekst",32.771111111111111,2,4.0506000000000002,null,null,null,null,null,null,null,null,"","","",""]
[null,null,2017,10,"The language of 2moro","tekst van gemiddelde moeilijkheid",59.761111111111106,2,1.6215000000000011,null,null,null,null,null,null,null,null,"","","",""]
[null,null,2017,11,"England shirt controversy","tekst van gemiddelde moeilijkheid",64.871111111111105,2,1.1616000000000009,null,null,null,null,null,null,null,null,"","","",""]
[null,null,2017,12,"Chernobyl","tekst van gemiddelde moeilijkheid",76.811111111111103,3,8.7000000000000632E-2,null,null,null,null,null,null,null,null,"","","",""]
[null,null,2017,13,"The internet is broken","moeilijke tekst",44.111111111111107,1,3.0300000000000007,null,null,null,null,null,null,null,null,"","","",""]
[null,null,2018,1,"Carbon-based energy","tekst van gemiddelde moeilijkheid",71.111111111111114,1,0.59999999999999964,null,null,null,null,null,null,null,null,"","","",""]
[null,null,2018,2,"Google meets grey matter","moeilijke tekst",40.111111111111107,1,3.3900000000000006,null,null,null,null,null,null,null,null,"","","",""]
[null,null,2018,3,"Water safety, on tap","tekst van gemiddelde moeilijkheid",56.431111111111107,2,1.9211999999999998,null,null,null,null,null,null,null,null,"","","",""]
[null,null,2018,4,"The raw and the clicked","moeilijke tekst",54.641111111111108,7,2.0823,null,null,null,null,null,null,null,null,"","","",""]
[null,null,2018,5,"A new reading of the old sob story","tekst van gemiddelde moeilijkheid",65.691111111111098,9,1.0878000000000005,null,null,null,null,null,null,null,null,"","","",""]
[null,null,2018,6,"Counsel against despair","moeilijke tekst",52.451111111111111,8,2.2793999999999999,null,null,null,null,null,null,null,null,"","","",""]
[null,null,2018,7,"Cops and cameras","tekst van gemiddelde moeilijkheid",69.591111111111104,7,0.73680000000000057,null,null,null,null,null,null,null,null,"","","",""]
[null,null,2018,8,"Bugs a la mode","tekst van gemiddelde moeilijkheid",76.371111111111105,5,0.12660000000000071,null,null,null,null,null,null,null,null,"","","",""]
[null,null,2018,9,"Physical attractiveness and careers","tekst van gemiddelde moeilijkheid",59.071111111111108,4,1.6836000000000002,null,null,null,null,null,null,null,null,"","","",""]
[null,null,2018,10,"Shapeshifter","tekst van gemiddelde moeilijkheid",60.111111111111107,1,1.5899999999999999,null,null,null,null,null,null,null,null,"","","",""]
[null,null,2018,11,"Jury duty information","tekst van gemiddelde moeilijkheid",63.661111111111104,2,1.2705000000000011,null,null,null,null,null,null,null,null,"","","",""]
[null,null,2019,1,"The jet set","makkelijke tekst",91.592222222222233,2,-1.2433000000000014,null,null,null,null,null,null,null,null,"","","",""]
[null,null,2019,2,"Storm reports","tekst van gemiddelde moeilijkheid",67.222222222222229,2,0.95000000000000018,null,null,null,null,null,null,null,null,"","","",""]
[null,null,2019,3,"Virtual danger","moeilijke tekst",36.112222222222222,2,3.7499000000000002,null,null,null,null,null,null,null,null,"","","",""]
[null,null,2019,4,"A dilemma of horns","tekst van gemiddelde moeilijkheid",77.052222222222227,6,6.5299999999999692E-2,null,null,null,null,null,null,null,null,"","","",""]
[null,null,2019,5,"Axis","tekst van gemiddelde moeilijkheid",78.172222222222231,4,-3.5500000000000753E-2,null,null,null,null,null,null,null,null,"","","",""]
[null,null,2019,6,"Could one word unite the world?","tekst van gemiddelde moeilijkheid",64.712222222222223,5,1.1759000000000004,null,null,null,null,null,null,null,null,"","","",""]
[null,null,2019,7,"Hollywood whitewashing","tekst van gemiddelde moeilijkheid",55.512222222222221,8,2.0038999999999998,null,null,null,null,null,null,null,null,"","","",""]
[null,null,2019,8,"Fickle feline friends forever","tekst van gemiddelde moeilijkheid",59.102222222222224,6,1.6807999999999996,null,null,null,null,null,null,null,null,"","","",""]
[null,null,2019,9,"Time 100 List of Most Influential People in the World","tekst van gemiddelde moeilijkheid",75.222222222222229,2,0.23000000000000043,null,null,null,null,null,null,null,null,"","","",""]
[null,null,2019,10,"Panda poop power","tekst van gemiddelde moeilijkheid",59.792222222222222,4,1.6187000000000005,null,null,null,null,null,null,null,null,"","","",""]
[null,null,2019,11,"Alto’s Adventure","tekst van gemiddelde moeilijkheid",63.222222222222221,2,1.3099999999999996,null,null,null,null,null,null,null,null,"","","",""]
[null,null,2019,12,"The genius of landscape architect Capability Brown","tekst van gemiddelde moeilijkheid",65.862222222222229,2,1.0723999999999991,null,null,null,null,null,null,null,null,"","","",""]
[null,null,2019,13,"Hilton","moeilijke tekst",47.562222222222225,2,2.7194000000000003,null,null,null,null,null,null,null,null,"","","",""]
[null,null,2021,1,"A waiter’s excuse for being rude",{"$f":"IF(G115>P$7,\"makkelijke tekst\",IF(G115<P$6,\"moeilijke tekst\",\"tekst van gemiddelde moeilijkheid\"))","v":"makkelijke tekst"},84.578888888888883,2,-0.61209999999999898,null,null,null,null,null,null,null,null,"","","",""]
[null,null,2021,2,"Human and pet health-cost trends are strikingly  similar","tekst van gemiddelde moeilijkheid",57.578888888888891,2,1.8178999999999998,null,null,null,null,null,null,null,null,"","","",""]
[null,null,2021,3,"Social mobility","makkelijke tekst",86.888888888888886,1,-0.82000000000000028,null,null,null,null,null,null,null,null,"","","",""]
[null,null,2021,4,"Cheers and jeers for the end of Crain’s comments section","tekst van gemiddelde moeilijkheid",77.618888888888904,4,1.4299999999998647E-2,null,null,null,null,null,null,null,null,"","","",""]
[null,null,2021,5,"On Lebanon’s coast, a garbage dump grows","tekst van gemiddelde moeilijkheid",79.048888888888882,5,-0.11439999999999984,null,null,null,null,null,null,null,null,"","","",""]
[null,null,2021,6,"Down the YouTubes","tekst van gemiddelde moeilijkheid",62.358888888888892,7,1.3876999999999997,null,null,null,null,null,null,null,null,"","","",""]
[null,null,2021,7,"Beware the robot revolution","tekst van gemiddelde moeilijkheid",59.448888888888895,5,1.6495999999999995,null,null,null,null,null,null,null,null,"","","",""]
[null,null,2021,8,"Here and back again","tekst van gemiddelde moeilijkheid",68.268888888888881,6,0.85580000000000034,null,null,null,null,null,null,null,null,"","","",""]
[null,null,2021,9,"Revenge is a dish better left unmade","moeilijke tekst",52.948888888888895,5,2.2345999999999995,null,null,null,null,null,null,null,null,"","","",""]
[null,null,2021,10,"Hot talk-show","tekst van gemiddelde moeilijkheid",56.148888888888891,5,1.9466000000000001,null,null,null,null,null,null,null,null,"","","",""]
[null,null,2021,11,"Ruthin school","makkelijke tekst",81.888888888888886,1,-0.37000000000000011,null,null,null,null,null,null,null,null,"","","",""]
[null,null,2021,12,"Hostel Celica, Ljubljana, Slovenia","tekst van gemiddelde moeilijkheid",74.888888888888886,1,0.25999999999999979,null,null,null,null,null,null,null,null,"","","",""]
[null,null,2021,13,"Ready player one","tekst van gemiddelde moeilijkheid",65.728888888888889,2,1.0844000000000005,null,null,null,null,null,null,null,null,"","","",""]
[null,null,2022,1,"Looking for the one?","tekst van gemiddelde moeilijkheid",73.666666666666671,1,0.37000000000000011,null,null,null,null,null,null,null,null,"","","",""]
[null,null,2022,2,"The fruit Iron Ox bears","tekst van gemiddelde moeilijkheid",78.446666666666673,4,-6.0200000000000919E-2,null,null,null,null,null,null,null,null,"","","",""]
[null,null,2022,3,"How to live like a tramp","tekst van gemiddelde moeilijkheid",55.146666666666668,3,2.0368000000000004,null,null,null,null,null,null,null,null,"","","",""]
[null,null,2022,4,"Call it a sacrifice to the hype gods","tekst van gemiddelde moeilijkheid",58.326666666666668,4,1.7505999999999995,null,null,null,null,null,null,null,null,"","","",""]
[null,null,2022,5,"Vegan beauty: hype or here to stay?","tekst van gemiddelde moeilijkheid",67.666666666666671,6,0.91000000000000014,null,null,null,null,null,null,null,null,"","","",""]
[null,null,2022,6,"Stan Lee’s legacy","tekst van gemiddelde moeilijkheid",75.216666666666669,6,0.23049999999999926,null,null,null,null,null,null,null,null,"","","",""]
[null,null,2022,7,"More skin in the game","tekst van gemiddelde moeilijkheid",73.376666666666665,7,0.39610000000000056,null,null,null,null,null,null,null,null,"","","",""]
[null,null,2022,8,"Smile kids","tekst van gemiddelde moeilijkheid",60.706666666666678,6,1.5363999999999987,null,null,null,null,null,null,null,null,"","","",""]
[null,null,2022,9,"Unqualified teachers","tekst van gemiddelde moeilijkheid",60.416666666666671,3,1.5625,null,null,null,null,null,null,null,null,"","","",""]
[null,null,2022,10,"Four-day working week","tekst van gemiddelde moeilijkheid",57.626666666666672,4,1.8135999999999992,null,null,null,null,null,null,null,null,"","","",""]
[null,null,2022,11,"Consultants","tekst van gemiddelde moeilijkheid",71.666666666666671,1,0.54999999999999982,null,null,null,null,null,null,null,null,"","","",""]
[null,null,2022,12,"City Venues That Are All the Rage","tekst van gemiddelde moeilijkheid",73.616666666666674,2,0.37449999999999939,null,null,null,null,null,null,null,null,"","","",""]
[null,null,2023,1,"Gunna Wunna","tekst van gemiddelde moeilijkheid",72,2,0.51999999999999957,null,null,null,null,null,null,null,null,"","","",""]
[null,null,2023,2,"A mountain of waste","makkelijke tekst",83,2,-0.46999999999999975,null,null,null,null,null,null,null,null,"","","",""]
[null,null,2023,3,"Annihilation","tekst van gemiddelde moeilijkheid",63,3,1.33,null,null,null,null,null,null,null,null,"","","",""]
[null,null,2023,4,"Can language of the Vikings survive English onslaught","makkelijke tekst",81,7,-0.29000000000000004,null,null,null,null,null,null,null,null,"","","",""]
[null,null,2023,5,"Blue-sky thinking","moeilijke tekst",49,8,2.59,null,null,null,null,null,null,null,null,"","","",""]
[null,null,2023,6,"Are You Too Smart to Think Wisely?","tekst van gemiddelde moeilijkheid",65,8,1.1500000000000004,null,null,null,null,null,null,null,null,"","","",""]
[null,null,2023,7,"The white stuff","tekst van gemiddelde moeilijkheid",75,6,0.25,null,null,null,null,null,null,null,null,"","","",""]
[null,null,2023,8,"Tennessee","tekst van gemiddelde moeilijkheid",65,5,1.1500000000000004,null,null,null,null,null,null,null,null,"","","",""]
[null,null,2023,9,"Look up to the skies","tekst van gemiddelde moeilijkheid",69,3,0.79,null,null,null,null,null,null,null,null,"","","",""]
[null,null,2023,10,"Chinese gift stirs up drama","moeilijke tekst",53,2,2.2300000000000004,null,null,null,null,null,null,null,null,"","","",""]
[null,null,2023,11,"To the Editor Abolish the Police","tekst van gemiddelde moeilijkheid",64,1,1.2400000000000002,null,null,null,null,null,null,null,null,"","","",""]

{"sheet":"geselecteerde teksten","index":1,"n_rows":10,"n_cols":7,"rows_kept":10,"cut":false,"hidden":false,"merged":[[11,4,11,5],[10,4,10,5],[9,4,9,5]]}
[null,"Engels havo"]
[]
[null,null,"inhoud van de toets"]
[]
[null,null,"schaallengte",null,{"$f":"'selecteer de teksten'!P12","v":0}]
[null,null,"N-term",null,{"$f":"'selecteer de teksten'!P15","v":1}]
[]
[null,null,"teksten in chronologische volgorde"]
[]
[null,null,"jaar","tekst","omschrijving",null,"punten"]

{"sheet":"omzettingstabel","index":2,"n_rows":47,"n_cols":16,"rows_kept":47,"cut":false,"hidden":false,"merged":[]}
[]
[null,"Vaknaam:",null,null,null,{"$f":"'selecteer de teksten'!B1","v":"Engels havo"}]
[null,"Schaallengte:",null,null,null,46]
[null,"Normeringsterm:",null,null,null,1]
[]
[null,"Score","Cijfer",null,"Score","Cijfer",null,null,null,null,null,null,null,null,null,"####"]
[]
[null,0,"1,0",null,40,"8,8"]
[null,1,"1,2",null,41,"9,0"]
[null,2,"1,4",null,42,"9,2"]
[null,3,"1,6",null,43,"9,4"]
[null,4,"1,8",null,44,"9,6"]
[null,5,"2,0",null,45,"9,8"]
[null,6,"2,2",null,46,"10,0"]
[null,7,"2,4"]
[null,8,"2,6"]
[null,9,"2,8"]
[null,10,"3,0"]
[null,11,"3,2"]
[null,12,"3,3"]
[null,13,"3,5"]
[null,14,"3,7"]
[null,15,"3,9"]
[null,16,"4,1"]
[null,17,"4,3"]
[null,18,"4,5"]
[null,19,"4,7"]
[null,20,"4,9"]
[null,21,"5,1"]
[null,22,"5,3"]
[null,23,"5,5"]
[null,24,"5,7"]
[null,25,"5,9"]
[null,26,"6,1"]
[null,27,"6,3"]
[null,28,"6,5"]
[null,29,"6,7"]
[null,30,"6,9"]
[null,31,"7,1"]
[null,32,"7,3"]
[null,33,"7,5"]
[null,34,"7,7"]
[null,35,"7,8"]
[null,36,"8,0"]
[null,37,"8,2"]
[null,38,"8,4"]
[null,39,"8,6"]